bitfinex-derivatives/quotes_BTCF0:USTF0_20240913
["timestamp","ask_amount","ask_price","bid_price","bid_amount"]
[1726258163481,0.11144859,59697.0,59696.0,0.45552]
[1726258163681,0.11244859,59697.0,59696.0,0.45552]
[1726258164081,0.01366084,59703.0,59696.0,1.55808]
[1726258164285,0.48082768,59708.0,59696.0,1.55808]
[1726258164286,0.21553127,59708.0,59706.0,0.083705]
[1726258164483,0.01385716,59714.0,59707.0,1.17364]
[1726258164682,0.21555327,59714.0,59713.0,0.3608]
[1726258164996,0.21555327,59715.0,59714.0,0.083694]
[1726258165295,0.21555327,59715.0,59714.0,0.253694]
[1726258165789,0.083689,59718.0,59714.0,0.17]
[1726258166489,0.008,59715.0,59714.0,0.254694]
[1726258167149,0.01,59715.0,59714.0,0.255694]
[1726258167693,0.3608,59723.0,59714.0,0.255694]
[1726258167694,0.0039,59727.0,59715.0,0.50236]
[1726258167891,0.0039,59733.0,59722.0,0.17]
[1726258168094,0.1402,59732.0,59722.0,0.17]
[1726258168292,0.1402,59732.0,59720.0,0.3608]
[1726258168293,0.08368,59725.0,59720.0,0.3608]
[1726258169202,0.05137906,59724.0,59720.0,0.3608]
[1726258169387,0.05137906,59723.0,59720.0,0.3608]
[1726258169700,0.05137906,59722.0,59720.0,0.3618]
[1726258170005,0.05137906,59721.0,59720.0,0.446486]
[1726258170184,0.083674,59729.0,59721.0,0.17]
[1726258170390,0.05137727,59728.0,59726.0,0.253677]
[1726258170686,0.14370065,59734.0,59727.0,0.083676]
[1726258170895,0.05137593,59731.0,59727.0,0.083676]
[1726258171094,0.05137593,59730.0,59727.0,0.083676]
[1726258171295,0.05137593,59729.0,59728.0,0.083675]
[1726258172790,0.05137593,59729.0,59728.0,0.084675]
[1726258172983,0.05137593,59729.0,59728.0,0.085675]
[1726258173390,0.18010024,59729.0,59724.0,0.17]
[1726258173592,0.18010024,59728.0,59724.0,0.17]
[1726258173946,0.26463364,59726.0,59725.0,0.083679]
[1726258174157,0.44473388,59726.0,59725.0,0.083679]
[1726258174539,0.39335795,59726.0,59725.0,0.083679]
[1726258174987,0.06003365,59726.0,59725.0,0.083679]
[1726258176194,0.06003365,59726.0,59725.0,0.084679]
[1726258176394,0.06003365,59726.0,59725.0,0.085679]
[1726258177101,0.06003365,59726.0,59725.0,0.002]
[1726258177892,0.083685,59721.0,59715.0,0.083692]
[1726258178200,0.17,59718.0,59715.0,0.083692]
[1726258178495,0.06003365,59717.0,59715.0,0.083692]
[1726258178695,0.06003365,59716.0,59715.0,0.083692]
[1726258178900,0.06003365,59716.0,59711.0,0.083698]
[1726258179101,0.083696,59714.0,59707.0,0.3608]
[1726258179305,0.26282431,59713.0,59707.0,0.3608]
[1726258179503,0.12872431,59712.0,59707.0,0.3608]
[1726258179701,0.12872431,59711.0,59707.0,0.3608]
[1726258179998,0.1341,59713.0,59707.0,0.3608]
[1726258179999,0.12872431,59710.0,59707.0,0.3608]
[1726258180198,0.12872431,59709.0,59707.0,0.3608]
[1726258180402,0.083698,59712.0,59707.0,0.3608]
[1726258180610,0.3608,59712.0,59704.0,0.3608]
[1726258180810,0.253702,59709.0,59704.0,0.3608]
[1726258181800,0.253702,59709.0,59704.0,0.444508]
[1726258182099,0.083702,59709.0,59704.0,0.444508]
[1726258182491,0.1364,59711.0,59705.0,0.083706]
[1726258182696,0.1364,59711.0,59708.0,0.083702]
[1726258182896,0.3608,59712.0,59708.0,0.17]
[1726258183101,0.3608,59712.0,59710.0,0.0837]
[1726258183395,0.3608,59712.0,59711.0,0.083698]
[1726258186898,0.1341,59713.0,59711.0,0.083698]
[1726258190502,0.1341,59713.0,59709.0,0.3608]
[1726258191303,0.3608,59712.0,59704.0,0.5308]
[1726258191501,0.083701,59710.0,59704.0,0.3608]
[1726258192005,0.083701,59710.0,59706.0,0.083705]
[1726258192424,0.083701,59710.0,59704.0,0.3608]
[1726258192425,0.3608,59712.0,59708.0,0.083702]
[1726258193405,0.01360102,59716.0,59708.0,0.083702]
[1726258193406,0.01360102,59716.0,59709.0,0.3608]
[1726258193612,0.083685,59721.0,59712.0,0.17]
[1726258194016,0.09719237,59721.0,59712.0,0.17]
[1726258194382,0.09719237,59721.0,59714.0,0.3608]
[1726258194721,0.09719237,59721.0,59717.0,0.08369]
[1726258195311,0.09719237,59721.0,59714.0,0.3608]
[1726258195312,0.14373012,59720.0,59714.0,0.3608]
[1726258195613,0.06004412,59719.0,59714.0,0.444494]
[1726258195911,0.06004412,59718.0,59714.0,0.444494]
[1726258196109,0.083688,59719.0,59714.0,0.444494]
[1726258196110,0.06004412,59717.0,59714.0,0.444494]
[1726258196308,0.06004412,59716.0,59714.0,0.444494]
[1726258196501,0.06004412,59715.0,59714.0,0.444494]
[1726258196702,0.083688,59719.0,59717.0,0.001]
[1726258196703,0.06004412,59718.0,59717.0,0.001]
[1726258196913,0.083688,59719.0,59717.0,0.001]
[1726258198515,0.083688,59719.0,59716.0,0.083691]
[1726258198814,0.30385304,59722.0,59716.0,0.083691]
[1726258199013,0.30385304,59722.0,59717.0,0.001]
[1726258199800,0.30385304,59722.0,59716.0,0.083691]
[1726258200516,0.083685,59721.0,59717.0,0.001]
[1726258202411,0.083685,59721.0,59716.0,0.083691]
[1726258202412,0.083687,59720.0,59716.0,0.083691]
[1726258203009,0.083689,59718.0,59717.0,0.001]
[1726258203219,0.614489,59718.0,59717.0,0.001]
[1726258203402,0.67453312,59718.0,59717.0,0.001]
[1726258203601,0.67453312,59718.0,59710.0,0.0039]
[1726258203602,0.083693,59715.0,59710.0,0.0039]
[1726258203814,0.083693,59715.0,59709.0,0.083701]
[1726258204206,0.083695,59714.0,59709.0,0.083701]
[1726258204517,0.083698,59712.0,59707.0,0.3608]
[1726258204703,0.1423,59711.0,59707.0,0.444504]
[1726258205521,0.1423,59711.0,59707.0,0.083704]
[1726258205718,0.253701,59710.0,59701.0,1.4665]
[1726258206014,0.2023534,59711.0,59702.0,0.08371]
[1726258206209,0.1423,59711.0,59703.0,0.08371]
[1726258207016,0.083704,59708.0,59703.0,0.08371]
[1726258207212,0.1423,59711.0,59703.0,0.08371]
[1726258208009,0.15606149,59711.0,59703.0,0.08371]
[1726258208814,0.083704,59707.0,59703.0,0.08371]
[1726258210315,0.083706,59706.0,59703.0,0.08371]
[1726258210517,0.0600534,59705.0,59703.0,0.08371]
[1726258210718,0.0600534,59704.0,59703.0,0.08371]
[1726258211515,0.0600534,59704.0,59703.0,1.4399]
[1726258211712,0.444496,59713.0,59704.0,0.083708]
[1726258211911,0.444496,59713.0,59711.0,0.083698]
[1726258212518,0.37419404,59713.0,59710.0,0.17]
[1726258212721,0.01339404,59713.0,59712.0,0.444497]
[1726258212934,0.083695,59714.0,59713.0,0.083696]
[1726258213121,0.0039,59719.0,59717.0,0.08369]
[1726258213859,0.083689,59718.0,59717.0,0.08369]
[1726258214728,0.14373516,59718.0,59717.0,0.08369]
[1726258215718,0.14373516,59718.0,59717.0,0.08469]
[1726258218237,0.06004616,59718.0,59717.0,0.08469]
[1726258218426,0.15999191,59721.0,59717.0,0.08469]
[1726258219428,0.32999191,59721.0,59717.0,0.001]
[1726258219739,0.444489,59718.0,59717.0,0.001]
[1726258219941,0.083691,59716.0,59710.0,0.448399]
[1726258220135,0.17,59714.0,59710.0,0.444499]
[1726258220528,0.17,59714.0,59711.0,0.083698]
[1726258222640,0.17,59714.0,59711.0,0.084698]
[1726258223133,0.17,59714.0,59712.0,0.083697]
[1726258223431,0.17,59714.0,59713.0,0.083696]
[1726258223633,0.06004616,59717.0,59711.0,0.001]
[1726258224436,0.06004616,59717.0,59712.0,0.001]
[1726258224732,0.06004616,59717.0,59714.0,0.083694]
[1726258225327,0.615329,59718.0,59714.0,0.083694]
[1726258225524,0.06005055,59717.0,59715.0,0.083692]
[1726258225742,0.06005055,59716.0,59715.0,0.083692]
[1726258228133,0.06005055,59717.0,59716.0,0.083691]
[1726258228335,0.32510887,59717.0,59716.0,0.13364371]
[1726258229042,0.32510887,59717.0,59716.0,0.49444371]
[1726258229229,0.06005055,59717.0,59716.0,0.49444371]
[1726258229427,0.06005055,59717.0,59716.0,0.57813471]
[1726258229629,0.0133557,59718.0,59717.0,0.25107]
[1726258229850,0.0039,59724.0,59723.0,0.083682]
[1726258230052,0.0039,59724.0,59723.0,0.528164]
[1726258230053,0.06003561,59724.0,59723.0,0.528164]
[1726258230351,0.06003561,59728.0,59727.0,0.083676]
[1726258230565,0.06003561,59731.0,59730.0,0.083672]
[1726258230750,0.00825022,59732.0,59731.0,0.08367]
[1726258231052,0.06003561,59732.0,59731.0,0.08367]
[1726258231261,0.06852786,59732.0,59731.0,0.08367]
[1726258231558,0.00849225,59732.0,59731.0,0.08367]
[1726258231758,0.06003561,59734.0,59731.0,0.08367]
[1726258232055,0.06003561,59734.0,59731.0,0.08567]
[1726258232250,0.06825313,59734.0,59731.0,0.002]
[1726258232851,0.083669,59733.0,59731.0,0.002]
[1726258233558,0.083669,59732.0,59731.0,0.002]
[1726258248555,0.14370071,59732.0,59731.0,0.002]
[1726258250561,0.06003171,59732.0,59731.0,0.002]
[1726258251965,0.14370071,59732.0,59731.0,0.002]
[1726258252266,0.31370071,59732.0,59731.0,0.002]
[1726258255067,0.14370071,59732.0,59731.0,0.002]
[1726258255570,0.083669,59732.0,59731.0,0.002]
[1726258257475,0.15191723,59734.0,59731.0,0.002]
[1726258259774,0.15191723,59734.0,59731.0,0.001]
[1726258259980,0.15191723,59734.0,59731.0,0.002]
[1726258261376,0.15191723,59734.0,59731.0,0.08567]
[1726258261377,0.06824923,59734.0,59731.0,0.08567]
[1726258261580,0.06824923,59734.0,59731.0,0.002]
[1726258262279,0.15191623,59734.0,59731.0,0.002]
[1726258262480,0.083669,59733.0,59731.0,0.002]
[1726258262777,0.083669,59732.0,59731.0,0.002]
[1726258262978,0.253669,59732.0,59731.0,0.002]
[1726258263667,0.31370071,59732.0,59731.0,0.002]
[1726258264574,1.69307171,59732.0,59722.0,0.0039]
[1726258264768,0.083686,59720.0,59719.0,0.0039]
[1726258264976,0.083686,59720.0,59713.0,0.083696]
[1726258264977,0.21240676,59720.0,59713.0,0.444496]
[1726258265276,0.12872076,59719.0,59713.0,0.444496]
[1726258265477,0.26514441,59714.0,59713.0,0.444496]
[1726258265781,0.39386517,59714.0,59713.0,0.444496]
[1726258266185,0.12872076,59714.0,59713.0,0.444496]
[1726258267483,0.12872076,59714.0,59713.0,0.445496]
[1726258268078,0.06003171,59714.0,59713.0,0.444496]
[1726258268283,0.06003171,59714.0,59713.0,0.445496]
[1726258268683,0.07330782,59714.0,59713.0,0.445496]
[1726258270585,0.01327611,59714.0,59713.0,0.444496]
[1726258270787,0.083694,59720.0,59719.0,0.083696]
[1726258270987,0.083694,59720.0,59719.0,0.444496]
[1726258272291,0.09682684,59720.0,59719.0,0.444496]
[1726258275294,0.01313284,59720.0,59719.0,0.444496]
[1726258275495,0.083689,59724.0,59722.0,0.083691]
[1726258275694,0.083689,59724.0,59723.0,0.17]
[1726258276981,0.083689,59724.0,59723.0,0.171]
[1726258277983,0.083689,59724.0,59723.0,0.172]
[1726258278587,0.14372563,59724.0,59723.0,0.172]
[1726258279379,0.06003663,59724.0,59723.0,0.25569]
[1726258279583,0.12873031,59724.0,59723.0,0.25569]
[1726258279782,0.06003663,59724.0,59723.0,0.25569]
[1726258280185,0.12873031,59724.0,59723.0,0.25569]
[1726258280385,0.06003663,59724.0,59723.0,0.25569]
[1726258280587,0.12873031,59724.0,59723.0,0.25569]
[1726258280789,0.06003663,59724.0,59723.0,0.25569]
[1726258281094,0.12873031,59724.0,59723.0,0.25569]
[1726258281283,0.06003663,59724.0,59723.0,0.25569]
[1726258283884,0.12873031,59724.0,59723.0,0.14191131]
[1726258285195,0.39402387,59724.0,59723.0,0.14191131]
[1726258285690,0.26529356,59724.0,59723.0,0.14191131]
[1726258286096,0.0964753,59727.0,59726.0,0.083686]
[1726258286289,0.0964753,59727.0,59726.0,0.183686]
[1726258286893,0.0127903,59727.0,59726.0,0.183686]
[1726258287098,0.083682,59729.0,59728.0,0.083683]
[1726258287798,0.50952,59732.0,59731.0,0.083679]
[1726258287997,0.56863387,59732.0,59731.0,0.083679]
[1726258289100,0.65231087,59732.0,59731.0,0.083679]
[1726258289298,0.58205537,59732.0,59731.0,0.083679]
[1726258289491,0.22125537,59732.0,59729.0,0.06852035]
[1726258289692,0.0134215,59732.0,59731.0,0.444479]
[1726258289885,0.06003387,59736.0,59735.0,0.083673]
[1726258290093,0.1433,59739.0,59733.0,0.4608]
[1726258290286,0.0039,59743.0,59738.0,0.4608]
[1726258290487,0.01336647,59743.0,59742.0,0.183663]
[1726258290701,0.083659,59745.0,59742.0,0.183663]
[1726258290886,0.06003387,59747.0,59744.0,0.083661]
[1726258291091,0.42868887,59748.0,59744.0,0.083661]
[1726258291303,0.06003387,59747.0,59744.0,0.083661]
[1726258292097,0.08366,59745.0,59740.0,0.083666]
[1726258292300,0.17,59745.0,59736.0,0.0039]
[1726258292504,0.17,59740.0,59736.0,0.3608]
[1726258293808,0.06003387,59739.0,59736.0,0.3608]
[1726258293994,0.06003387,59738.0,59736.0,0.3608]
[1726258294199,0.06003387,59737.0,59736.0,0.444471]
[1726258294814,0.06003387,59737.0,59736.0,0.083671]
[1726258295103,0.06003387,59737.0,59736.0,0.444471]
[1726258295600,0.06003387,59737.0,59732.0,0.083677]
[1726258295909,0.06003387,59736.0,59730.0,0.17]
[1726258296087,0.149,59738.0,59730.0,0.17]
[1726258296088,0.06003387,59735.0,59730.0,0.17]
[1726258296290,0.06003387,59734.0,59730.0,0.17]
[1726258296504,0.06003387,59733.0,59730.0,0.17]
[1726258296697,0.06003387,59732.0,59731.0,0.083679]
[1726258298890,0.06003387,59732.0,59731.0,0.085679]
[1726258299296,0.06003387,59732.0,59731.0,0.083679]
[1726258300608,0.23267,59738.0,59733.0,0.083676]
[1726258301213,0.083671,59737.0,59733.0,0.083676]
[1726258301614,0.3168,59736.0,59729.0,0.3608]
[1726258301824,0.25368,59731.0,59729.0,0.3608]
[1726258302018,0.14370105,59735.0,59729.0,0.44448]
[1726258302326,0.083673,59735.0,59730.0,0.08368]
[1726258302808,0.083675,59734.0,59730.0,0.08368]
[1726258303011,0.09217091,59734.0,59730.0,0.08368]
[1726258306612,0.09217091,59734.0,59725.0,0.0039]
[1726258306613,0.17,59731.0,59725.0,0.0039]
[1726258306818,0.00849591,59734.0,59721.0,0.0039]
[1726258306819,0.083691,59722.0,59721.0,0.0039]
[1726258307027,0.253691,59722.0,59716.0,0.083699]
[1726258307223,0.1394,59721.0,59716.0,0.083699]
[1726258309524,0.1394,59721.0,59716.0,0.084699]
[1726258311419,0.1394,59721.0,59717.0,0.083697]
[1726258311619,0.1394,59721.0,59716.0,0.001]
[1726258311822,0.1394,59721.0,59720.0,0.083694]
[1726258313127,0.1434,59721.0,59720.0,0.083694]
[1726258313630,0.1454,59721.0,59720.0,0.083694]
[1726258318826,0.1454,59721.0,59713.0,0.3608]
[1726258319032,0.1454,59721.0,59717.0,0.083698]
[1726258319933,0.1434,59721.0,59717.0,0.083698]
[1726258320127,0.083695,59720.0,59717.0,0.083698]
[1726258320327,0.1404,59721.0,59717.0,0.083698]
[1726258320718,0.1404,59721.0,59718.0,0.083697]
[1726258321434,0.083695,59720.0,59714.0,0.083701]
[1726258321635,0.083703,59714.0,59713.0,0.005]
[1726258321825,0.253703,59714.0,59713.0,0.005]
[1726258322324,0.17,59714.0,59705.0,0.0039]
[1726258322634,0.5308,59708.0,59706.0,0.083713]
[1726258322838,0.3608,59708.0,59706.0,0.083713]
[1726258323926,0.37391537,59708.0,59706.0,0.083713]
[1726258325132,0.37391537,59708.0,59706.0,0.089713]
[1726258326831,0.37391537,59708.0,59706.0,0.096713]
[1726258328031,0.083712,59707.0,59706.0,0.013]
[1726258332144,0.37479537,59708.0,59706.0,0.013]
[1726258332356,0.37391537,59708.0,59706.0,0.013]
[1726258332640,0.37391537,59708.0,59707.0,0.083712]
[1726258332853,0.37391537,59708.0,59707.0,0.505212]
[1726258334342,0.37391537,59708.0,59707.0,0.511212]
[1726258334856,0.45762637,59708.0,59707.0,0.006]
[1726258335237,0.45762637,59708.0,59707.0,0.011]
[1726258337435,0.37391537,59708.0,59707.0,0.011]
[1726258338148,0.37391537,59708.0,59707.0,0.094712]
[1726258339138,0.43397005,59708.0,59707.0,0.094712]
[1726258343145,0.07317005,59708.0,59707.0,0.094712]
[1726258343450,0.01311537,59708.0,59707.0,0.094712]
[1726258343750,0.0039,59714.0,59707.0,0.3718]
[1726258343953,0.06005468,59716.0,59707.0,0.3718]
[1726258344149,0.14375468,59716.0,59712.0,0.083705]
[1726258344547,0.06005468,59715.0,59712.0,0.083705]
[1726258344747,0.06005468,59714.0,59712.0,0.083705]
[1726258345053,0.06005468,59713.0,59712.0,0.083705]
[1726258345254,0.06005468,59715.0,59712.0,0.083705]
[1726258345445,0.06005468,59714.0,59712.0,0.083705]
[1726258345645,0.06005468,59713.0,59712.0,0.083705]
[1726258346246,0.001,59714.0,59712.0,0.083705]
[1726258347548,0.001,59713.0,59712.0,0.083705]
[1726258347949,0.15681146,59716.0,59712.0,0.083705]
[1726258348150,0.001,59714.0,59713.0,0.083704]
[1726258348647,0.07310438,59716.0,59714.0,0.083702]
[1726258348850,0.07310438,59716.0,59715.0,0.083701]
[1726258349855,0.07410438,59716.0,59715.0,0.083701]
[1726258350056,0.01405678,59716.0,59715.0,0.083701]
[1726258351258,0.01505678,59716.0,59715.0,0.253701]
[1726258351561,0.01805678,59716.0,59715.0,0.253701]
[1726258352661,0.01605678,59716.0,59715.0,0.253701]
[1726258352867,0.01805678,59716.0,59715.0,0.253701]
[1726258354056,0.07810174,59716.0,59715.0,0.253701]
[1726258355861,0.07710174,59716.0,59715.0,0.253701]
[1726258356462,0.07610174,59716.0,59715.0,0.253701]
[1726258358070,0.07410174,59716.0,59715.0,0.253701]
[1726258358365,0.07610174,59716.0,59715.0,0.253701]
[1726258359174,0.07710174,59716.0,59715.0,0.253701]
[1726258360172,0.07610174,59716.0,59715.0,0.183701]
[1726258360483,0.07510174,59716.0,59715.0,0.183701]
[1726258360676,0.07610174,59716.0,59715.0,0.183701]
[1726258361080,0.01605678,59716.0,59715.0,0.544501]
[1726258364479,0.01605678,59716.0,59715.0,0.183701]
[1726258364684,0.01605678,59716.0,59715.0,0.544501]
[1726258371784,0.01867678,59716.0,59715.0,0.544501]
[1726258373887,0.11867678,59716.0,59708.0,0.44451]
[1726258374093,0.11867678,59716.0,59708.0,0.3608]
[1726258374094,0.1,59713.0,59708.0,0.3608]
[1726258374384,0.284,59715.0,59710.0,0.083708]
[1726258374385,0.083707,59711.0,59710.0,0.083708]
[1726258374589,0.14374935,59711.0,59710.0,0.083708]
[1726258374780,0.14374935,59711.0,59706.0,0.083713]
[1726258374975,0.1,59709.0,59702.0,0.4608]
[1726258375177,0.30164235,59712.0,59708.0,0.090711]
[1726258375385,0.30164235,59712.0,59708.0,0.096711]
[1726258375782,0.30164235,59712.0,59708.0,0.090711]
[1726258376187,0.325305,59712.0,59708.0,0.090711]
[1726258376689,0.325305,59712.0,59708.0,0.095711]
[1726258376877,0.325305,59712.0,59708.0,0.088711]
[1726258377697,0.325305,59712.0,59708.0,0.094711]
[1726258380592,0.2416,59712.0,59709.0,0.08371]
[1726258381794,0.2416,59712.0,59709.0,0.08871]
[1726258382196,0.2416,59712.0,59709.0,0.09171]
[1726258382501,0.1,59710.0,59709.0,0.008]
[1726258382799,0.1,59710.0,59702.0,0.3647]
[1726258382800,0.1,59710.0,59703.0,0.083717]
[1726258382999,0.1,59704.0,59703.0,0.083717]
[1726258383200,0.10822317,59704.0,59703.0,0.083717]
[1726258384089,0.00822317,59704.0,59703.0,0.083717]
[1726258384288,0.1,59707.0,59704.0,0.083716]
[1726258385600,0.1,59707.0,59704.0,0.084716]
[1726258387393,0.1,59707.0,59705.0,0.083715]
[1726258387594,0.20165559,59712.0,59705.0,0.1]
[1726258387796,0.06005559,59712.0,59711.0,0.1]
[1726258387997,0.00262,59716.0,59711.0,0.1]
[1726258388202,0.00262,59716.0,59715.0,0.183701]
[1726258389503,0.01562922,59716.0,59715.0,0.183701]
[1726258389797,0.00962,59716.0,59715.0,0.184701]
[1726258390600,0.01662,59716.0,59715.0,0.185701]
[1726258391195,0.00962,59716.0,59715.0,0.184701]
[1726258391507,0.01462,59716.0,59715.0,0.184701]
[1726258391888,0.00762,59716.0,59715.0,0.183701]
[1726258392192,0.01162,59716.0,59715.0,0.183701]
[1726258392589,0.01462,59716.0,59715.0,0.184701]
[1726258393004,0.01462,59716.0,59715.0,0.183701]
[1726258393204,0.00962,59716.0,59715.0,0.183701]
[1726258393595,0.0039,59723.0,59722.0,0.083691]
[1726258393795,0.3737,59737.0,59722.0,0.083691]
[1726258393796,0.0039,59733.0,59732.0,0.083677]
[1726258394091,0.19853582,59736.0,59735.0,0.083673]
[1726258394297,0.19853582,59736.0,59735.0,0.183673]
[1726258394298,0.24990834,59736.0,59735.0,0.183673]
[1726258395801,0.25690834,59736.0,59735.0,0.184673]
[1726258396001,0.11840834,59736.0,59735.0,0.084673]
[1726258396202,0.05837252,59736.0,59735.0,0.084673]
[1726258396406,0.07133544,59736.0,59735.0,0.084673]
[1726258396908,0.01996292,59736.0,59735.0,0.084673]
[1726258397100,0.13136066,59736.0,59735.0,0.084673]
[1726258397292,0.13236066,59736.0,59735.0,0.085673]
[1726258397494,0.07233399,59736.0,59735.0,0.085673]
[1726258399207,0.13236075,59736.0,59735.0,0.085673]
[1726258401804,0.08098968,59736.0,59735.0,0.085673]
[1726258402009,0.07233405,59736.0,59735.0,0.085673]
[1726258402202,0.13236081,59736.0,59735.0,0.085673]
[1726258405607,0.07233405,59736.0,59735.0,0.085673]
[1726258405916,0.13236024,59736.0,59735.0,0.085673]
[1726258406207,0.07233405,59736.0,59735.0,0.085673]
[1726258406399,0.13235979,59736.0,59735.0,0.085673]
[1726258406600,0.13235979,59736.0,59735.0,0.446473]
[1726258406900,0.05937113,59736.0,59735.0,0.446473]
[1726258407099,0.11939687,59736.0,59735.0,0.446473]
[1726258407306,0.05937113,59736.0,59735.0,0.446473]
[1726258407808,0.05237113,59736.0,59735.0,0.445473]
[1726258408010,0.05937113,59736.0,59735.0,0.446473]
[1726258409607,0.05537113,59736.0,59735.0,1.64420688]
[1726258409912,0.05937113,59736.0,59735.0,1.64520688]
[1726258410213,0.008,59736.0,59735.0,1.64520688]
[1726258410414,0.004,59736.0,59735.0,1.64420688]
[1726258410615,0.004,59736.0,59735.0,1.64620688]
[1726258411405,0.083657,59747.0,59745.0,0.083659]
[1726258411598,0.01304272,59746.0,59745.0,0.083659]
[1726258411803,0.083657,59747.0,59745.0,0.083659]
[1726258412005,0.083657,59747.0,59746.0,0.083658]
[1726258412206,0.09651038,59747.0,59746.0,0.083658]
[1726258414113,0.09651038,59747.0,59743.0,0.17]
[1726258414114,0.083658,59746.0,59743.0,0.083662]
[1726258414319,0.01985338,59747.0,59745.0,0.083659]
[1726258414816,0.01985338,59747.0,59746.0,0.001]
[1726258415222,0.01685338,59747.0,59745.0,0.083659]
[1726258415516,0.003,59746.0,59745.0,0.083659]
[1726258416109,0.01985338,59747.0,59746.0,0.001]
[1726258416310,0.01585338,59747.0,59746.0,0.001]
[1726258417515,0.01285338,59747.0,59745.0,0.083659]
[1726258417718,0.003,59746.0,59745.0,0.084659]
[1726258418115,0.007,59747.0,59746.0,0.001]
[1726258418710,0.007,59747.0,59745.0,0.084659]
[1726258419717,0.007,59747.0,59745.0,0.085659]
[1726258420222,0.00962,59747.0,59745.0,0.085659]
[1726258422622,0.00962,59747.0,59746.0,0.001]
[1726258423009,0.00962,59747.0,59745.0,0.084659]
[1726258423010,0.00662,59747.0,59745.0,0.084659]
[1726258423220,0.00662,59747.0,59745.0,0.085659]
[1726258423221,0.00962,59747.0,59745.0,0.085659]
[1726258423615,0.00562,59747.0,59745.0,0.084659]
[1726258423809,0.00962,59747.0,59746.0,0.001]
[1726258424019,0.00962,59747.0,59746.0,0.002]
[1726258424418,0.00962,59747.0,59746.0,0.001]
[1726258424920,0.00962,59747.0,59746.0,0.101]
[1726258425311,0.00962,59747.0,59746.0,0.184658]
[1726258425519,0.00962,59747.0,59746.0,0.183658]
[1726258426122,0.00962,59747.0,59746.0,0.184658]
[1726258426326,0.00962,59747.0,59746.0,0.185658]
[1726258429023,0.00962,59747.0,59746.0,0.546458]
[1726258430119,0.00662,59747.0,59746.0,0.545458]
[1726258430316,0.00962,59747.0,59746.0,0.546458]
[1726258435828,0.0666325,59747.0,59746.0,0.545458]
[1726258436333,0.00562,59747.0,59746.0,0.545458]
[1726258436534,0.00962,59747.0,59746.0,0.546458]
[1726258438533,0.00662,59747.0,59746.0,0.545458]
[1726258438835,0.00962,59747.0,59746.0,0.546458]
[1726258439826,0.00962,59747.0,59746.0,0.185658]
[1726258440635,0.00962,59747.0,59746.0,0.085658]
[1726258440938,0.093276,59747.0,59746.0,0.002]
[1726258442224,0.093276,59747.0,59739.0,0.0039]
[1726258442225,0.00962,59747.0,59739.0,0.0039]
[1726258442434,0.083669,59738.0,59736.0,0.0039]
[1726258442638,0.6116,59737.0,59732.0,0.0039]
[1726258442827,0.1,59732.0,59729.0,0.0039]
[1726258443140,0.4608,59730.0,59727.0,0.083684]
[1726258443335,0.0600125,59729.0,59727.0,0.083684]
[1726258443536,0.0600125,59728.0,59727.0,0.083684]
[1726258444222,0.0600125,59728.0,59723.0,0.3855]
[1726258444536,0.4608,59730.0,59723.0,0.1039]
[1726258444537,0.0600125,59727.0,59723.0,0.1039]
[1726258444722,0.0600125,59726.0,59724.0,0.083688]
[1726258444926,0.0600125,59725.0,59724.0,0.083688]
[1726258445837,0.0600125,59725.0,59724.0,0.086688]
[1726258446635,0.0600125,59725.0,59724.0,0.090688]
[1726258447125,0.0600125,59725.0,59724.0,0.228488]
[1726258447530,0.0600125,59729.0,59726.0,0.083685]
[1726258447730,0.0600125,59728.0,59726.0,0.083685]
[1726258447928,0.0600125,59727.0,59726.0,0.083685]
[1726258448330,0.0600125,59730.0,59726.0,0.083685]
[1726258448543,0.09189334,59731.0,59729.0,0.1]
[1726258448840,0.06003208,59730.0,59729.0,0.1]
[1726258449637,0.06003208,59730.0,59729.0,0.183682]
[1726258451042,0.14371208,59730.0,59729.0,0.183682]
[1726258451333,0.08568,59730.0,59729.0,0.183682]
[1726258451733,0.08668,59730.0,59729.0,0.183682]
[1726258453747,0.44748,59730.0,59729.0,0.183682]
[1726258456748,0.083682,59729.0,59726.0,0.083685]
[1726258457044,0.083682,59729.0,59727.0,0.083684]
[1726258457440,0.083682,59729.0,59728.0,0.083683]
[1726258458445,0.14371668,59729.0,59728.0,0.083683]
[1726258459156,0.14471668,59729.0,59728.0,0.083683]
[1726258460858,0.084682,59729.0,59728.0,0.083683]
[1726258462148,0.001,59729.0,59728.0,0.083683]
[1726258463649,0.06103468,59729.0,59728.0,0.083683]
[1726258463855,0.001,59729.0,59728.0,0.083683]
[1726258464350,0.06103468,59729.0,59728.0,0.083683]
[1726258464657,0.001,59729.0,59728.0,0.083683]
[1726258464859,0.084682,59729.0,59728.0,0.083683]
[1726258465859,0.001,59729.0,59728.0,0.083683]
[1726258466565,0.001,59729.0,59728.0,0.183683]
[1726258473157,0.084682,59729.0,59728.0,0.183683]
[1726258473468,0.14471326,59729.0,59728.0,0.183683]
[1726258473659,0.06103126,59729.0,59728.0,0.183683]
[1726258475752,0.001,59729.0,59728.0,0.183683]
[1726258477167,0.06103126,59729.0,59728.0,0.544483]
[1726258481569,0.001,59729.0,59728.0,0.544483]
[1726258485265,0.001,59729.0,59728.0,0.183683]
[1726258485871,0.001,59729.0,59728.0,0.544483]
[1726258496685,0.0610264,59729.0,59728.0,0.544483]
[1726258501492,0.0610264,59729.0,59728.0,0.628166]
[1726258502584,0.001,59729.0,59728.0,0.628166]
[1726258503892,0.001,59729.0,59728.0,0.544483]
[1726258506191,0.001,59729.0,59728.0,0.711849]
[1726258506490,0.0039,59735.0,59728.0,0.711849]
[1726258506491,0.0039,59735.0,59734.0,0.083675]